fUSD/lending_fUSD_20240923
["ID","MTS","AMOUNT","RATE_DAILY","PERIOD"]
[338904573,1727049629158,549.58584455,0.00010082,2]
[338904574,1727049651619,500.0,0.00010082,2]
[338904575,1727049707072,295.09,0.0001,2]
[338904576,1727049707194,250.0,0.00011907,2]
[338904577,1727049785233,1000.0,0.00011912,2]
[338904578,1727049797307,382.9079874,0.00011604,2]
[338904579,1727049798818,250.0,0.00011907,2]
[338904580,1727049809466,325.770696,0.00012,2]
[338904581,1727049968862,4499.42,0.00011925,2]
[338904582,1727049987153,150.49,0.00011968,2]
[338904583,1727049994536,250.0,0.00011962,2]
[338904584,1727049996118,152.28,0.00013918,30]
[338904586,1727050104224,293.26,0.00011965,2]
[338904587,1727050120662,1000.0,0.00011982,2]
[338904588,1727050161910,997.61,0.00012,2]
[338904591,1727050187929,156.35,0.00010959,2]
[338904592,1727050228901,500.0,0.00010082,2]
[338904602,1727050231860,-1096.48125041,0.00012164,2]
[338904603,1727050231970,-1792.81574959,0.00012164,2]
[338904604,1727050231979,-150.0,0.00012164,2]
[338904605,1727050231989,-1198.91,0.000122,2]
[338904606,1727050231999,-87.92425041,0.0001224,2]
[338904607,1727050232075,-67.07574959,0.0001224,2]
[338904608,1727050232085,-274.35055139,0.00012264,2]
[338904609,1727050232097,-20.73944861,0.00012264,2]
[338904610,1727050232106,-500.0,0.00012442,2]
[338904611,1727050232116,-200.0,0.00012442,2]
[338904612,1727050232125,-168.44,0.00012445,2]
[338904619,1727050232134,-203.0,0.0001276,2]
[338904620,1727050232343,-150.99,0.00012768,2]
[338904621,1727050232353,-500.0,0.00012822,2]
[338904622,1727050232362,-500.0,0.00012847,2]
[338904623,1727050232372,-500.0,0.00012856,2]
[338904624,1727050232382,-500.0,0.00012865,2]
[338904625,1727050232391,-500.0,0.00012874,2]
[338904626,1727050232400,-300.0,0.00012881,2]
[338904627,1727050232409,-487.36445959,0.00012882,2]
[338904630,1727050237998,-500.0,0.00012874,2]
[338904631,1727050238009,-12.63554041,0.00012882,2]
[338904632,1727050238018,-500.0,0.00012882,2]
[338904633,1727050238031,-351.585,0.00012891,2]
[338904634,1727050238040,-500.0,0.00012891,2]
[338904635,1727050238050,-166.398,0.00012891,2]
[338904636,1727050238060,-500.0,0.00012891,2]
[338904637,1727050238070,-150.0,0.00012899,2]
[338904638,1727050238079,-1000.0,0.000129,2]
[338904639,1727050238088,-176.81501871,0.000129,2]
[338904640,1727050238098,-500.0,0.000129,2]
[338904641,1727050238107,-155.53217067,0.000129,2]
[338904642,1727050238117,-155.53217067,0.000129,2]
[338904643,1727050238127,-155.53217067,0.000129,2]
[338904644,1727050238136,-155.53217067,0.000129,2]
[338904645,1727050238146,-155.53217067,0.000129,2]
[338904646,1727050238156,-155.53217067,0.000129,2]
[338904647,1727050238166,-155.53217067,0.000129,2]
[338904648,1727050238175,-155.53217067,0.000129,2]
[338904649,1727050238184,-155.53217067,0.000129,2]
[338904650,1727050238194,-155.53217067,0.000129,2]
[338904651,1727050238203,-155.53217067,0.000129,2]
[338904652,1727050238212,-155.53217067,0.000129,2]
[338904653,1727050238222,-155.53217067,0.000129,2]
[338904654,1727050238232,-156.03,0.000129,2]
[338904655,1727050238241,-809.39586354,0.000129,2]
[338904656,1727050238251,-809.39586354,0.000129,2]
[338904657,1727050238261,-809.39586354,0.000129,2]
[338904658,1727050238270,-809.39586354,0.000129,2]
[338904659,1727050238280,-809.39586354,0.000129,2]
[338904660,1727050238289,-809.39586354,0.000129,2]
[338904661,1727050238299,-809.39586354,0.000129,2]
[338904662,1727050238309,-809.39586354,0.000129,2]
[338904663,1727050238318,-809.39586354,0.000129,2]
[338904664,1727050238327,-809.39586354,0.000129,2]
[338904665,1727050238337,-809.39586354,0.000129,2]
[338904666,1727050238346,-809.39586354,0.000129,2]
[338904667,1727050238356,-809.39586354,0.000129,2]
[338904668,1727050238366,-809.39586354,0.000129,2]
[338904669,1727050238375,-809.39586354,0.000129,2]
[338904670,1727050238384,-809.39586354,0.000129,2]
[338904671,1727050238394,-809.39586354,0.000129,2]
[338904672,1727050238403,-809.39586354,0.000129,2]
[338904673,1727050238413,-809.39586354,0.000129,2]
[338904674,1727050238422,-809.89,0.000129,2]
[338904675,1727050238431,-863.99497175,0.000129,2]
[338904676,1727050238441,-863.99497175,0.000129,2]
[338904677,1727050238451,-863.99497175,0.000129,2]
[338904678,1727050238460,-863.99497175,0.000129,2]
[338904679,1727050238471,-863.99497175,0.000129,2]
[338904680,1727050238480,-863.99497175,0.000129,2]
[338904681,1727050238489,-863.99497175,0.000129,2]
[338904682,1727050238498,-863.99497175,0.000129,2]
[338904683,1727050238507,-863.99497175,0.000129,2]
[338904684,1727050238516,-863.99497175,0.000129,2]
[338904685,1727050238526,-863.99497175,0.000129,2]
[338904686,1727050238535,-863.99497175,0.000129,2]
[338904687,1727050238544,-863.99497175,0.000129,2]
[338904688,1727050238554,-863.99497175,0.000129,2]
[338904689,1727050238563,-863.99497175,0.000129,2]
[338904690,1727050238573,-863.99497175,0.000129,2]
[338904691,1727050238582,-863.99497175,0.000129,2]
[338904692,1727050238591,-863.99497175,0.000129,2]
[338904693,1727050238601,-863.99497175,0.000129,2]
[338904694,1727050238610,-864.49,0.000129,2]
[338904695,1727050238619,-421.35408527,0.000129,2]
[338904696,1727050238628,-1000.0,0.000129,2]
[338904697,1727050238638,-203.0,0.0001295,2]
[338904698,1727050238647,-500.0,0.00012973,2]
[338904699,1727050238657,-500.0,0.00012973,2]
[338904700,1727050238666,-500.0,0.00012973,2]
[338904701,1727050238676,-500.0,0.00012973,2]
[338904702,1727050238686,-473.09632875,0.00012973,2]
[338904703,1727050238695,-152.35,0.0001299,2]
[338904704,1727050238706,-288.49547172,0.00012999,2]
[338904705,1727050238716,-715.83234818,0.00012999,2]
[338904706,1727050238729,-310.74658207,0.00012999,2]
[338904707,1727050238739,-500.0,0.00012999,2]
[338904708,1727050238748,-500.0,0.00012999,2]
[338904709,1727050238758,-388.5839152,0.00012999,2]
[338904710,1727050238767,-2270.0,0.00012999,2]
[338904711,1727050238777,-2000.0,0.00012999,2]
[338904712,1727050238786,-22194.48293229,0.00013,2]
[338904713,1727050238803,-2555.16566531,0.00013,2]
[338904716,1727050238819,-4096.24700064,0.00013,2]
[338904729,1727050239896,-2751.123375,0.00013,2]
[338904730,1727050239910,-359.58943198,0.00013,2]
[338904731,1727050239924,-643.23488832,0.00013,2]
[338904732,1727050239937,-1364.37830755,0.00013,2]
[338904733,1727050239960,-5083.14621753,0.00013,2]
[338904734,1727050240003,-795.53578029,0.00013,2]
[338904735,1727050240014,-27089.17785513,0.00013,2]
[338904736,1727050240024,-1518.24201,0.00013,2]
[338904737,1727050240035,-1363.68834929,0.00013,2]
[338904738,1727050240045,-2023.404,0.00013,2]
[338904739,1727050240058,-2658.3,0.00013,2]
[338904740,1727050240068,-837.74750378,0.00013,2]
[338904741,1727050240080,-140831.78781609,0.00013,2]
[338904742,1727050240113,-1785.82599457,0.00013,2]
[338904743,1727050240124,-727.40483639,0.00013,2]
[338904744,1727050240135,-19004.07780853,0.00013,2]
[338904745,1727050240148,-39726.86026963,0.00013,2]
[338904746,1727050240159,-10700.81275929,0.00013,2]
[338904747,1727050240171,-3439.77144982,0.00013,2]
[338904748,1727050240183,-807.73443717,0.00013,2]
[338904749,1727050240194,-1596.3,0.00013,2]
[338904750,1727050240276,-338.0226125,0.00013,2]
[338904751,1727050240287,-5154.21964599,0.00013,2]
[338904752,1727050240299,-4285.81638443,0.00013,2]
[338904753,1727050240332,-1244.6844767,0.00013,2]
[338904754,1727050240344,-1840.0,0.00013,2]
[338904755,1727050240355,-587.72819476,0.00013,2]
[338904844,1727050242950,-1365.73052827,0.000129,2]
[338904845,1727050242960,-1573.59119831,0.00013,2]
[338904846,1727050242975,-4491.72001492,0.00013,2]
[338904847,1727050242987,-1058.55765,0.00013,2]
[338904848,1727050242999,-330.5,0.00013,2]
[338904849,1727050243010,-569.34145238,0.00013,2]
[338904850,1727050243021,-1061.06,0.00013,2]
[338904851,1727050243031,-532.35328105,0.00013,2]
[338904852,1727050243043,-122351.57419388,0.00013,2]
[338904853,1727050243052,-62250.198661,0.00013,2]
[338904854,1727050243062,-5971.9,0.00013,2]
[338904855,1727050243073,-708.21285023,0.00013,2]
[338904856,1727050243083,-5983.9,0.00013,2]
[338904857,1727050243094,-1232.8790104,0.00013,2]
[338904858,1727050243106,-8457.3627112,0.00013,2]
[338904859,1727050243118,-361.01292754,0.00013,2]
[338904860,1727050243131,-332.4976,0.00013,2]
[338904861,1727050243143,-258.39,0.00013,2]
[338904862,1727050243154,-567.1644708,0.00013,2]
[338904863,1727050243173,-585.395015,0.00013,2]
[338904864,1727050243185,-34105.91719769,0.00013,2]
[338904865,1727050243196,-16140.23654866,0.00013,2]
[338904866,1727050243222,-370.19267968,0.00013,2]
[338904867,1727050243236,-6855.90067227,0.00013,2]
[338904868,1727050243247,-1071.21456169,0.00013,2]
[338904869,1727050243258,-682.39886699,0.00013,2]
[338904870,1727050243269,-27213.93825579,0.00013,2]
[338904871,1727050243281,-6654.157102,0.00013,2]
[338904872,1727050243292,-276.63684318,0.00013,2]
[338904873,1727050243304,-2627.76022133,0.00013,2]
[338904874,1727050243315,-21986.27470492,0.00013,2]
[338904875,1727050243326,-10877.31968114,0.00013,2]
[338904876,1727050243337,-1325.20799028,0.00013,2]
[338904877,1727050243349,-39694.74607981,0.00013,2]
[338904878,1727050243360,-1201.87353666,0.00013,2]
[338904879,1727050243372,-5242.74940921,0.00013,2]
[338904883,1727050245804,-340.72615337,0.000129,2]
[338904884,1727050245815,-405.49859489,0.00013,2]
[338904885,1727050245861,-53614.89159049,0.00013,2]
[338904886,1727050245873,-12979.47777581,0.00013,2]
[338904887,1727050245887,-1287.41365579,0.00013,2]
[338904888,1727050245899,-747.40697802,0.00013,2]
[338904889,1727050245913,-505.14,0.00013,2]
[338904890,1727050245925,-292.064,0.00013,2]
[338904891,1727050245936,-371.08009368,0.00013,2]
[338904892,1727050245947,-3187.19048631,0.00013,2]
[338904893,1727050245958,-2238.27476078,0.00013,2]
[338904894,1727050245969,-1865.23497668,0.00013,2]
[338904895,1727050245980,-23938.32502418,0.00013,2]
[338904896,1727050245991,-4778.87436627,0.00013,2]
[338904897,1727050246002,-4855.58430813,0.00013,2]
[338904898,1727050246013,-6356.51117519,0.00013,2]
[338904899,1727050246024,-502.77427118,0.00013,2]
[338904900,1727050246035,-1434.79165165,0.00013,2]
[338904901,1727050246046,-569.62893995,0.00013,2]
[338904902,1727050246057,-3194.03000004,0.00013,2]
[338904903,1727050246071,-320.98,0.00013,2]
[338904904,1727050246082,-2630.82659408,0.00013,2]
[338904905,1727050246093,-573.16900945,0.00013,2]
[338904906,1727050246104,-1010.28983316,0.00013,2]
[338904907,1727050246115,-324.95834368,0.00013,2]
[338904908,1727050246126,-5285.28,0.00013,2]
[338904909,1727050246141,-12216.4,0.00013,2]
[338904910,1727050246152,-22334.93310861,0.00013,2]
[338904911,1727050246163,-1644.15644672,0.00013,2]
[338904912,1727050246174,-301.5416119,0.00013,2]
[338904913,1727050246185,-265.53699999,0.00013,2]
[338904914,1727050246195,-401.57841489,0.00013,2]
[338904915,1727050246211,-520.42458624,0.00013,2]
[338904916,1727050246223,-1499.90008,0.00013,2]
[338904917,1727050246234,-493.09011844,0.00013,2]
[338904918,1727050246245,-2087.08,0.00013,2]
[338904919,1727050246256,-500.0,0.00013,2]
[338904920,1727050246267,-6676.43119304,0.00013,2]
[338904921,1727050246278,-1303.17693193,0.00013,2]
[338904922,1727050246289,-1321.92848934,0.00013,2]
[338904923,1727050246304,-446587.12589366,0.00013,2]
[338904924,1727050246315,-2049.27708235,0.00013,2]
[338904925,1727050246326,-4280.54195279,0.00013,2]
[338904926,1727050246337,-8901.18086874,0.00013,2]
[338904927,1727050246348,-602.0,0.00013,2]
[338904928,1727050246359,-2457.38273895,0.00013,2]
[338904929,1727050246370,-6653.2513662,0.00013,2]
[338904930,1727050246382,-984.31139991,0.00013,2]
[338904931,1727050246393,-1139.7056083,0.00013,2]
[338904932,1727050316624,500.0,0.00021999,120]
[338904933,1727050378667,297.67,0.00010422,2]
[338904934,1727050442722,-155.0,0.0001249,2]
[338904935,1727050442744,-297.67,0.00012686,2]
[338904936,1727050442765,-500.0,0.00012838,2]
[338904937,1727050442787,-500.0,0.00012847,2]
[338904938,1727050442808,-500.0,0.00012856,2]
[338904939,1727050442827,-500.0,0.00012865,2]
[338904940,1727050442857,-1521.1723,0.00012873,2]
[338904941,1727050442879,-500.0,0.00012896,2]
[338904942,1727050442899,-200.0,0.00012896,2]
[338904943,1727050442919,-150.0,0.00012899,2]
[338904944,1727050442939,-178.1665,0.000129,2]
[338904945,1727050442960,-4997.9912,0.000129,2]
[338904947,1727050548564,2624.72086397,0.00011574,2]
[338904948,1727050590432,-1079.01,0.000122,2]
[338904949,1727050590457,-250.0,0.00012314,2]
[338904950,1727050590479,-242.64,0.00012408,2]
[338904951,1727050590500,-250.0,0.00012456,2]
[338904952,1727050590521,-2110.57,0.00012505,2]
[338904953,1727050590542,-727.0,0.0001287,2]
[338904954,1727050590563,-300.0,0.00012899,2]
[338904955,1727050590584,-3040.78,0.000129,2]
[338904956,1727050656343,150.0,0.00022,120]
[338904957,1727050657273,150.0,0.00022,120]
[338904958,1727050657993,150.0,0.00022,120]
[338904959,1727050658729,150.0,0.00022,120]
[338904960,1727050659474,150.0,0.00022,120]
[338904961,1727050660248,150.0,0.00022,120]
[338904962,1727050661984,150.0,0.00022,120]
[338904963,1727050662769,150.0,0.00022,120]
[338904964,1727050666549,150.0,0.00022,120]
[338904966,1727050821509,646.26172153,0.00021999,120]
[338904967,1727050903467,283.16,0.00010317,2]
[338904968,1727050996947,-1729.54386111,0.00012164,2]
[338904969,1727050996973,-971.11,0.000122,2]
[338904970,1727050996996,-748.951,0.00012264,2]
[338904971,1727050997021,-5867.0,0.00012264,2]
[338904972,1727050997044,-150.0,0.00012264,2]
[338904973,1727050997069,-293.25,0.00012309,2]
[338904974,1727050997093,-516.47,0.00012408,2]
[338904975,1727050997119,-165.774,0.00012408,2]
[338904976,1727050997145,-170.1,0.00012437,2]
[338904977,1727050997172,-200.0,0.00012448,2]
[338904978,1727050997199,-283.16,0.00012581,2]
[338904979,1727050997226,-47905.6834,0.000129,2]
[338904980,1727050997250,-16296.4303,0.000129,2]
[338904981,1727050997277,-7362.52743889,0.000129,2]
[338904983,1727051025690,-500.0,0.000137,5]
[338904984,1727051054994,-500.0,0.00013874,5]
[338904985,1727051055019,-17313.15851757,0.00014,5]
[338904986,1727051055042,-10000.0,0.00014,10]
[338904987,1727051076886,500.0,0.00010164,2]
[338904988,1727051079958,-1000.0,0.000142,6]
[338904989,1727051086223,-462.0,0.000143,5]
[338904990,1727051086249,-10000.0,0.000144,10]
[338904991,1727051086458,-500.0,0.000144,5]
[338904992,1727051086483,-454.122604,0.000144,30]
[338904993,1727051096187,-8505.0,0.00014463,7]
[338904994,1727051096212,-74388.71887843,0.00014499,7]
[338904995,1727051112313,1050.0,0.00011,2]
[338904996,1727051114487,151.62886511,0.00011688,2]
[338904997,1727051119648,500.0,0.00010663,2]
[338904998,1727051154384,442.6668699,6.94e-05,2]
[338905001,1727051187675,2000.0,0.00022,120]
[338905002,1727051194267,2000.0,0.00022,120]
[338905003,1727051200322,2000.0,0.00022,120]
[338905004,1727051201715,500.0,0.00021999,120]
[338905005,1727051202036,500.0,0.00021999,120]
[338905006,1727051202341,500.0,0.00021999,120]
[338905007,1727051202622,500.0,0.00021999,120]
[338905008,1727051202885,500.0,0.00021999,120]
[338905009,1727051203150,500.0,0.00021999,120]
[338905010,1727051203791,500.0,0.00021999,120]
[338905011,1727051204463,500.0,0.00021999,120]
[338905012,1727051204728,500.0,0.00021999,120]
[338905013,1727051205061,500.0,0.00021999,120]
[338905014,1727051205319,500.0,0.00021999,120]
[338905015,1727051205624,500.0,0.00021999,120]
[338905016,1727051205912,500.0,0.00021999,120]
[338905017,1727051206200,500.0,0.00021999,120]
[338905018,1727051206394,2000.0,0.00022,120]
[338905019,1727051206444,203.53873469,0.00021999,120]
[338905020,1727051215748,2000.0,0.00022,120]
[338905021,1727051222680,2000.0,0.00022,120]
[338905050,1727051367308,158.11,0.00010959,2]
[338905072,1727051431987,-174.07,0.0001213,2]
[338905073,1727051431998,-1729.54386111,0.0001215,2]
[338905075,1727051432008,-230.43618752,0.00012196,2]
[338905076,1727051432045,-62.81381248,0.00012196,2]
[338905078,1727051432054,-170.1,0.00012249,2]
[338905080,1727051432071,-448.0,0.00012264,2]
[338905081,1727051432080,-5698.85891029,0.00012264,2]
[338905083,1727051432092,-168.14108971,0.00012264,2]
[338905084,1727051432101,-809.0,0.00012264,2]
[338905085,1727051432111,-748.951,0.00012264,2]
[338905086,1727051432121,-150.0,0.00012264,2]
[338905087,1727051432130,-250.0,0.000123,2]
[338905088,1727051432140,-1207.33,0.00012367,2]
[338905089,1727051432149,-840.0,0.00012382,2]
[338905090,1727051432159,-156.62,0.00012445,2]
[338905091,1727051432169,-24.86371799,0.000127,2]
[338905092,1727051432181,-323.0,0.000127,2]
[338905093,1727051432211,-652.13628201,0.000127,2]
[338905094,1727051432220,-500.0,0.00012856,2]
[338905095,1727051432229,-500.0,0.00012865,2]
[338905096,1727051432239,-500.0,0.00012874,2]
[338905097,1727051432248,-500.0,0.00012882,2]
[338905098,1727051432258,-500.0,0.00012891,2]
[338905099,1727051432267,-1458.5488,0.000129,2]
[338905100,1727051432276,-4415.31491799,0.000129,2]
[338905101,1727051432287,-402.31913625,0.000129,2]
[338905102,1727051432299,-11478.79624576,0.000129,2]
[338905103,1727051432308,-2736.96076111,0.000129,2]
[338905104,1727051432321,-1000.0,0.000129,2]
[338905105,1727051432330,-214.13293722,0.000129,2]
[338905106,1727051432341,-2263.71,0.000129,2]
[338905107,1727051432350,-500.0,0.000129,2]
[338905109,1727051432360,-6800.0,0.000129,2]
[338905111,1727051432370,-794.50165144,0.000129,2]
[338905113,1727051432380,-158.35097687,0.000129,2]
[338905115,1727051432389,-158.35097687,0.000129,2]
[338905117,1727051432400,-158.35097687,0.000129,2]
[338905119,1727051432410,-158.35097687,0.000129,2]
[338905120,1727051432419,-158.35097687,0.000129,2]
[338905122,1727051432430,-158.35097687,0.000129,2]
[338905123,1727051432440,-158.35097687,0.000129,2]
[338905124,1727051432449,-158.35097687,0.000129,2]
[338905125,1727051432459,-158.35097687,0.000129,2]
[338905126,1727051432469,-158.35097687,0.000129,2]
[338905127,1727051432479,-158.85,0.000129,2]
[338905128,1727051432489,-647.51174946,0.000129,2]
[338905129,1727051432499,-647.51174946,0.000129,2]
[338905130,1727051432508,-647.51174946,0.000129,2]
[338905131,1727051432517,-647.51174946,0.000129,2]
[338905132,1727051432527,-647.51174946,0.000129,2]
[338905133,1727051432537,-647.51174946,0.000129,2]
[338905134,1727051432546,-647.51174946,0.000129,2]
[338905135,1727051432556,-647.51174946,0.000129,2]
[338905136,1727051432572,-647.51174946,0.000129,2]
[338905137,1727051432582,-647.51174946,0.000129,2]
[338905138,1727051432591,-647.51174946,0.000129,2]
[338905139,1727051432601,-647.51174946,0.000129,2]
[338905140,1727051432610,-647.51174946,0.000129,2]
[338905141,1727051432619,-647.51174946,0.000129,2]
[338905142,1727051432628,-647.51174946,0.000129,2]
[338905143,1727051432638,-647.51174946,0.000129,2]
[338905144,1727051432647,-647.51174946,0.000129,2]
[338905145,1727051432657,-647.51174946,0.000129,2]
[338905146,1727051432666,-647.51174946,0.000129,2]
[338905147,1727051432676,-648.01,0.000129,2]
[338905148,1727051432686,-412.05081194,0.000129,2]
[338905149,1727051432695,-691.19102712,0.000129,2]
[338905150,1727051432705,-691.19102712,0.000129,2]
[338905151,1727051432715,-691.19102712,0.000129,2]
[338905152,1727051432724,-691.19102712,0.000129,2]
[338905153,1727051432734,-691.19102712,0.000129,2]
[338905154,1727051432743,-691.19102712,0.000129,2]
[338905155,1727051432752,-691.19102712,0.000129,2]
[338905156,1727051432762,-691.19102712,0.000129,2]
[338905157,1727051432771,-691.19102712,0.000129,2]
[338905158,1727051432780,-691.19102712,0.000129,2]
[338905159,1727051432790,-691.19102712,0.000129,2]
[338905160,1727051432799,-691.19102712,0.000129,2]
[338905161,1727051432808,-691.19102712,0.000129,2]
[338905162,1727051432822,-691.19102712,0.000129,2]
[338905163,1727051432831,-70.5602044,0.000129,2]
[338905164,1727051432850,-620.63082272,0.000129,2]
[338905165,1727051432859,-691.19102712,0.000129,2]
[338905166,1727051432868,-691.19102712,0.000129,2]
[338905167,1727051432877,-691.19102712,0.000129,2]
[338905168,1727051432886,-691.19102712,0.000129,2]
[338905169,1727051432895,-691.69,0.000129,2]
[338905170,1727051432904,-519.05225993,0.000129,2]
[338905171,1727051432914,-480.94774007,0.000129,2]
[338905172,1727051432923,-428.22,0.000129,2]
[338905173,1727051432933,-117.23050086,0.000129,2]
[338905174,1727051432947,-636.24949914,0.000129,2]
[338905175,1727051432956,-426.48,0.000129,2]
[338905176,1727051432965,-150.0,0.000129,2]
[338905177,1727051432975,-753.48,0.000129,2]
[338905178,1727051432983,-6342.388,0.000129,2]
[338905179,1727051432992,-387.36351473,0.000129,2]
[338905180,1727051433002,-3801.02477588,0.0001297,2]
[338905181,1727051433011,-500.0,0.00012973,2]
[338905182,1727051433020,-500.0,0.00012973,2]
[338905183,1727051433029,-500.0,0.00012973,2]
[338905184,1727051433038,-500.0,0.00012973,2]
[338905185,1727051433047,-186.34067264,0.00012999,2]
[338905186,1727051433056,-500.68734814,0.00012999,2]
[338905187,1727051433069,-500.0,0.00012999,2]
[338905188,1727051433078,-500.0,0.00012999,2]
[338905189,1727051433087,-41595.40410554,0.00013,2]
[338905190,1727051433995,285.25,0.00010532,2]
[338905196,1727051438171,-285.25,0.00012796,2]
[338905197,1727051438181,-359.43559983,0.000129,2]
[338905198,1727051438194,-37.79926013,0.000129,2]
[338905199,1727051438204,-978.81073987,0.00013,2]
[338905200,1727051438216,-1715.6453042,0.00013,2]
[338905201,1727051438227,-37145.9829598,0.00013,2]
[338905202,1727051438243,-7813.87199242,0.00013,2]
[338905203,1727051438284,-818.775,0.00013,2]
[338905204,1727051438296,-478.31959918,0.00013,2]
[338905205,1727051438307,-987.45743925,0.00013,2]
[338905206,1727051438322,-9247.2174918,0.00013,2]
[338905207,1727051438333,-820.5999,0.00013,2]
[338905208,1727051438509,-7456.58859818,0.00013,2]
[338905209,1727051438556,-63925.99440304,0.00013,2]
[338905222,1727051440084,-7155.30361422,0.00013,2]
[338905223,1727051440096,-3895.58825898,0.00013,2]
[338905224,1727051440143,-2561.10542528,0.00013,2]
[338905225,1727051440155,-2414.47484465,0.00013,2]
[338905226,1727051440165,-3810.54013007,0.00013,2]
[338905227,1727051440177,-355.72425126,0.00013,2]
[338905228,1727051440190,-4626.59156538,0.00013,2]
[338905229,1727051440202,-24912.89410395,0.00013,2]
[338905230,1727051440214,-131785.76718505,0.00013,2]
[338905231,1727051440224,-244841.18690112,0.00013,2]
[338905232,1727051440236,-10209.71626973,0.00013,2]
[338905233,1727051440248,-446923.86490173,0.00013,2]
[338905234,1727051440260,-540.15952284,0.00013,2]
[338905235,1727051440272,-1417.82265307,0.00013,2]
[338905236,1727051440284,-2041.58999799,0.00013,2]
[338905237,1727051440295,-52314.45260923,0.00013,2]
[338905238,1727051440331,-2336.89922027,0.00013,2]
[338905247,1727051440519,-356.19588052,0.00013,2]
[338905249,1727051440535,-682.60523184,0.00013,2]
[338905252,1727051440546,-1656.44460818,0.00013,2]
[338905254,1727051440557,-711.3485025,0.00013,2]
[338905355,1727051443097,-15775.77915603,0.00013,2]
[338905356,1727051443109,-3265.01060924,0.00013,2]
[338905357,1727051443120,-684.93719709,0.00013,2]
[338905358,1727051443132,-1516.6,0.00013,2]
[338905359,1727051443142,-2467.1499995,0.00013,2]
[338905360,1727051443153,-7440.45079688,0.00013,2]
[338905361,1727051443164,-1000.0,0.00013,2]
[338905362,1727051443175,-478.16699997,0.00013,2]
[338905363,1727051443186,-529.685291,0.00013,2]
[338905364,1727051443197,-8739.00278943,0.00013,2]
[338905365,1727051443207,-674.16794245,0.00013,2]
[338905366,1727051443219,-6303.18246252,0.00013,2]
[338905367,1727051443230,-571.571,0.00013,2]
[338905368,1727051443241,-10440.7642969,0.00013,2]
[338905369,1727051443251,-10992.66936184,0.00013,2]
[338905370,1727051443262,-1357.1802438,0.00013,2]
[338905371,1727051443273,-9012.60170715,0.00013,2]
[338905372,1727051443284,-593.90282978,0.00013,2]
[338905373,1727051443295,-340.68338463,0.00013,2]
[338905374,1727051443306,-530.11986904,0.00013,2]
[338905375,1727051443320,-1267.53629767,0.00013,2]
[338905376,1727051443331,-311.7686698,0.00013,2]
[338905377,1727051443342,-61224.16565478,0.00013,2]
[338905378,1727051443353,-305.67881732,0.00013,2]
[338905379,1727051443364,-489.18296135,0.00013,2]
[338905380,1727051443375,-362.76485203,0.00013,2]
[338905381,1727051443390,-1240.6631406,0.00013,2]
[338905382,1727051443402,-333.365006,0.00013,2]
[338905383,1727051443413,-369.1451945,0.00013,2]
[338905385,1727051443424,-463.3999995,0.00013,2]
[338905387,1727051443435,-484.33001,0.00013,2]
[338905389,1727051443447,-773.9542217,0.00013,2]
[338905392,1727051443460,-2558.2578458,0.00013,2]
[338905394,1727051443472,-7764.0017081,0.00013,2]
[338905396,1727051443484,-242992.47263957,0.00013,2]
[338905398,1727051443495,-6679.72932,0.00013,2]
[338905399,1727051443506,-373.5132,0.00013,2]